Cogmind - Beta 16.1 @@@ ROGUE MODE // 2026.01.03 @ 21:05:08 Player: BlobtheGreat Result: Core destroyed Performance ------------- Evolutions (0) 0 Regions Visited (4) 800 Robots Destroyed (33) 165 Value Destroyed (877) 877 Prototype IDs (23) 460 Alien Tech Used (0) 0 Bonus (292) 292 TOTAL SCORE: 2594 Bonus ------- Follower Combat Kills 7 Aligned with FarCom 300 Friendly Fire -15 Cogmind --------- Core Integrity 0/250 Matter 206/300 Energy 23/250 System Corruption 0% Temperature Critical (509) Movement Core (500) Ox9 Location -9/Mines Parts ------- > --- POWER (1) -------- Ion Engine > --- PROPULSION (2) --- Carbon-fiber Leg > --- UTILITY (2) ------ Large Storage Unit > --- WEAPON (2) ------- Beamcaster > --- INVENTORY (15) --- Light Treads Aluminum Leg Potential Leg Potential Leg High-capacity Storage Unit Seismic Detector Light Armor Plating Latent Energy Streamer Heavy Assault Rifle Mini Grenade Launcher Deploy-a-Sentry Deploy-a-Sentry Deploy-a-Sentry Botcube Peak State ------------ > --- POWER ------------ Light Angular Momentum Engine > --- PROPULSION ------- Aluminum Leg Carbon-fiber Leg > --- UTILITY ---------- Large Storage Unit Light Armor Plating > --- WEAPON ----------- Beamcaster Heavy Assault Rifle > --- INVENTORY -------- Ion Engine Light Treads Aluminum Leg Potential Leg Potential Leg Heat Sink High-capacity Storage Unit Seismic Detector Latent Energy Streamer Heavy Assault Rifle Mini Grenade Launcher Deploy-a-Sentry Deploy-a-Sentry Deploy-a-Sentry Botcube [Rating: 25] Favorites ----------- Power Light Angular Momentum Engine Engine Light Angular Momentum Engine Propulsion Aluminum Leg Leg Aluminum Leg Utility Light Armor Plating Device Seismic Detector Storage Small Storage Unit Protection Light Armor Plating Weapon Heavy Assault Rifle Energy Gun Beamcaster Ballistic Gun Heavy Assault Rifle Build | -11 -10 -10 -10 -9 ------- Run | Yrd Mat Min Exi Min Slots Evolved . | . . . . . Power . | . . . . . Propulsion . | . . . . . Utility . | . . . . . Weapon . | . . . . . Parts Attached 26 | 7 11 5 1 2 Power 3 | 1 . 1 . 1 Engine 3 | 1 . 1 . 1 Core . | . . . . . Reactor . | . . . . . Propulsion 11 | 2 7 2 . . Treads . | . . . . . Leg 11 | 2 7 2 . . Wheel . | . . . . . Hover . | . . . . . Flight . | . . . . . Utility 6 | 2 1 1 1 1 Device 2 | 1 . . . 1 Storage 2 | 1 . . 1 . Processor . | . . . . . Hackware . | . . . . . Protection 2 | . 1 1 . . Artifact . | . . . . . Weapon 6 | 2 3 1 . . Energy Gun 2 | 1 . 1 . . Energy Cannon . | . . . . . Ballistic Gun 4 | 1 3 . . . Ballistic Cannon . | . . . . . Launcher . | . . . . . Special Weapon . | . . . . . Impact Weapon . | . . . . . Slashing Weapon . | . . . . . Piercing Weapon . | . . . . . Special Melee Weapon . | . . . . . Unidentified Prototypes . | . . . . . Parts Lost 6 | . 1 1 . 4 Power 1 | . . . . 1 Propulsion 1 | . . . . 1 Utility 2 | . . 1 . 1 Weapon 2 | . 1 . . 1 Highest Loss Streak 4 | . 1 1 . 4 To Critical Strikes . | . . . . . Average Backups 8 | 3 6 7 10 11 Power . | . 1 1 1 . Propulsion 3 | 1 2 3 3 4 Utility 2 | . 2 1 2 3 Weapon 2 | . 1 1 2 3 Tool/Special . | . . . . . Unused Backups 17 | . 1 7 . 9 Power . | . . . . . Propulsion 6 | . . 2 . 4 Utility 6 | . . 3 . 3 Weapon 5 | . 1 2 . 2 Tool/Special . | . . . . . Average Slot Usage (%) 98 | . 93 100 100 97 Engine 13 | . 14 14 14 13 Leg 27 | . 28 28 28 27 Storage 14 | . 14 14 14 14 Protection 12 | . 7 14 14 12 Energy Gun 10 | . . 9 14 14 Ballistic Gun 17 | . 27 18 14 13 Peak Build Rating 25 | 8 10 19 24 25 Average Rating 17 | 6 9 15 20 24 On Entrance 12 | . 7 10 19 24 Avg Prop Armor Cover (%) . | . . . . . Naked Turns . | . . . . . Heaviest Build 40 | 15 19 25 40 40 Greatest Support 25 | 20 20 25 25 25 Greatest Overweight (x) 1 | . . 1 1 1 Average Overweight (x) . | . . . . 1 Largest Inventory Capacity 15 | 8 8 8 15 15 Average Capacity 10 | 7 8 8 13 15 Most Carried 15 | 7 8 8 15 15 Average Carried 10 | 4 7 7 11 14 Final Capacity 15 | 8 8 8 15 15 Final Carried 15 | 7 8 8 15 14 Class Distribution -------------------- 64% | Scavenger-Mutant 35% | Mutant Dominant Class ---------------- Mutant | -10/Materials Scavenger-Mutant | -10/Mines Scavenger-Mutant | -10/Exiles Scavenger-Mutant | -9/Mines Resources | -11 -10 -10 -10 -9 ----------- Run | Yrd Mat Min Exi Min Matter Collected 901 | 387 255 180 . 79 Remotely . | . . . . . Salvage Created 1271 | 221 429 246 . 375 Parts 75 | 16 27 14 . 18 Haulers Intercepted . | . . . . . Recyclers Shooed . | . . . . . Parts Field Recycled . | . . . . . Retrieved Matter . | . . . . . Parts Self-Destructed . | . . . . . Prevented . | . . . . . Parts Restored . | . . . . . Kills | -11 -10 -10 -10 -9 ------- Run | Yrd Mat Min Exi Min Combat Hostiles Destroyed 23 | . 9 4 . 10 Guns 23 | . 9 4 . 10 Classes Destroyed 8 | 3 2 . . 3 Worker 3 | 2 . . . 1 Tunneler 5 | 4 . 1 . . Recycler 2 | 1 . 1 . . Watcher 1 | . 1 . . . Swarmer 2 | . . . . 2 Grunt 19 | . 9 4 . 6 Duelist 1 | . . . . 1 Assembled 1 | . . . . 1 Best Kill Streak 5 | 5 3 3 . 2 Combat Bots Only 3 | . 3 2 . 2 Max Kills in Single Turn 2 | 1 1 1 . 2 Gunslinging . | . . . . . Exploded . | . . . . . Melee . | . . . . . Uniques/NPCs Destroyed . | . . . . . Combat | -11 -10 -10 -10 -9 -------- Run | Yrd Mat Min Exi Min Hostile Shots Fired 111 | . 58 6 . 47 Missed 24 | . 13 3 . 8 Hits 87 | . 45 3 . 39 Melee 7 | . . . . 7 Projectile 80 | . 45 3 . 32 Critical Strikes 1 | . . . . 1 Damage Taken 1218 | . 575 43 . 600 Core 254 | . 106 . . 148 Absorbed by Shields . | . . . . . Core Remaining (%) 100 | 100 . . . . Volleys Fired 139 | 39 41 8 . 51 Largest 2 | 2 2 2 . 2 Hottest 98 | 60 46 98 . 98 Shots Fired 221 | 42 81 16 . 82 Gun 221 | 42 81 16 . 82 Cannon . | . . . . . Launcher . | . . . . . Special . | . . . . . Kinetic 170 | 39 81 14 . 36 Thermal 48 | . . 2 . 46 Explosive . | . . . . . Electromagnetic 3 | 3 . . . . Robot Hit Streak 10 | 10 6 4 . 5 Robot Miss Streak 5 | 3 5 1 . 4 Penetration Max . | . . . . . Secondary Targets 4 | . 1 . . 3 Max Gunslinging Chain 1 | . 1 . . 1 Shots Hit Robots 122 | 34 49 9 . 30 Core Hits 45 | 8 16 8 . 13 Critical Kills . | . . . . . Critical Parts Destroyed . | . . . . . Critical Strikes 2 | . . 1 . 1 Burn 2 | . . 1 . 1 Melee Attacks . | . . . . . Impact . | . . . . . Slashing . | . . . . . Piercing . | . . . . . Sneak Attacks . | . . . . . Combat Hostiles . | . . . . . Follow-up Attacks . | . . . . . Damage Inflicted 1982 | 448 751 213 . 570 Guns 1931 | 445 751 165 . 570 Cannons . | . . . . . Explosions . | . . . . . Melee . | . . . . . Ramming 51 | 3 . 48 . . Kinetic 1506 | 418 751 122 . 215 Thermal 398 | . . 43 . 355 Explosive . | . . . . . Electromagnetic 27 | 27 . . . . Impact . | . . . . . Slashing . | . . . . . Piercing . | . . . . . Highest Corruption . | . . . . . Average Corruption . | . . . . . Corruption Purged . | . . . . . Corruption Blocked . | . . . . . Overload Shots . | . . . . . Overflow Damage . | . . . . . Projectiles . | . . . . . Explosions . | . . . . . Melee . | . . . . . Knockbacks . | . . . . . Impact . | . . . . . Kinetic . | . . . . . Secondary . | . . . . . Self-Inflicted Damage . | . . . . . Shots . | . . . . . Rammed . | . . . . . Targets Rammed 10 | 1 . 9 . . Kicked 10 | 1 . 9 . . Crushed . | . . . . . Highest Temperature 509 | . 58 90 . 509 Average Temperature 135 | . 23 37 . 172 Received Heat Transfer 525 | . 327 24 . 174 Effects 9 | . . . . 9 Shutdowns 2 | . . . . 2 Energy Bleed 1 | . . . . 1 Interference 1 | . . . . 1 Matter Decay 1 | . . . . 1 Short Circuit 1 | . . . . 1 Damage (minor) 2 | . . . . 2 Damage (core) 1 | . . . . 1 Siege Activations . | . . . . . Martial Activations . | . . . . . Shielding Activations . | . . . . . Robots Disrupted . | . . . . . Combat Hostiles . | . . . . . Robots Corrupted . | . . . . . Combat Hostiles . | . . . . . Parts Fried . | . . . . . Impact Corruptions . | . . . . . Robots Melted . | . . . . . Combat Hostiles . | . . . . . Parts Melted . | . . . . . Heat Transferred 851 | . . 148 . 703 Parts Sabotaged . | . . . . . Parts Stolen . | . . . . . Parts Stripped . | . . . . . Power Chain Reactions . | . . . . . Alert | -11 -10 -10 -10 -9 ------- Run | Yrd Mat Min Exi Min Maximum Alert Level . | . . . . . Low Security (%) 100 | 100 100 100 . 100 Level 1 . | . . . . . Level 2 . | . . . . . Level 3 . | . . . . . Level 4 . | . . . . . Level 5 . | . . . . . High Security . | . . . . . Max Security . | . . . . . Peak Influence 157 | 15 157 55 . 53 Initial 23 | . . 23 . . Average 23 | 2 87 7 . 12 Influence Increases 645 | 35 257 115 . 238 Destroy 0b10 Robot/C 460 | . 180 80 . 200 Destroy 0b10 Robot/NC 55 | 35 5 10 . 5 Destroy Leader 92 | . 42 20 . 30 Allied During Kill 8 | . . 5 . 3 Disable Machine 30 | . 30 . . . Influence Decreases 616 | 35 196 176 . 209 Entered New Map 38 | . . 38 . . Time Decay 510 | 35 186 138 . 151 Lost Part 48 | . 10 . . 38 Lost Ally 20 | . . . . 20 Squads Dispatched 2 | . 2 . . . Investigation . | . . . . . Extermination . | . . . . . Reinforcement 2 | . 2 . . . Assault . | . . . . . Garrison . | . . . . . Intercept . | . . . . . Searches Triggered . | . . . . . Construction Impeded . | . . . . . Haulers Reinforced . | . . . . . Active Scanning Responses . | . . . . . Cargo Convoy Interrupts . | . . . . . Stealth | -11 -10 -10 -10 -9 --------- Run | Yrd Mat Min Exi Min Distress Signals 4 | . 4 . . . Communications Jammed . | . . . . . Distress Signals . | . . . . . Times Spotted 30 | . 14 4 . 12 Peak Tracking Total 5 | . 5 2 . 4 Tactical Retreats . | . . . . . Traps | -11 -10 -10 -10 -9 ------- Run | Yrd Mat Min Exi Min Traps Triggered . | . . . . . Indirectly . | . . . . . Trap Hack Attempts . | . . . . . Triggered . | . . . . . Disarmed . | . . . . . Reprogrammed . | . . . . . Reused . | . . . . . Traps Extracted . | . . . . . Installed . | . . . . . Triggered . | . . . . . Machines | -11 -10 -10 -10 -9 ---------- Run | Yrd Mat Min Exi Min Machines Disabled 2 | . 2 . . . Max in Single Turn 1 | . 1 . . . Machines Repaired . | . . . . . Machines Dismantled . | . . . . . Machines Sabotaged . | . . . . . Overloaded Fab Kills . | . . . . . Hacking | -11 -10 -10 -10 -9 --------- Run | Yrd Mat Min Exi Min Machines Accessed 1 | . . . 1 . Terminals . | . . . . . Fabricators . | . . . . . Repair Stations . | . . . . . Recycling Units . | . . . . . Scanalyzers . | . . . . . Garrison Access . | . . . . . Total Hacks 1 | . . . 1 . Successful 1 | . . . 1 . Failed . | . . . . . Catastrophic . | . . . . . Database Lockouts . | . . . . . Manual 1 | . . . 1 . Terminals . | . . . . . Fabricators . | . . . . . Repair Stations . | . . . . . Recycling Units . | . . . . . Scanalyzers . | . . . . . Garrison Access . | . . . . . Terminal Hacks 1 | . . . 1 . Proto ID Catalog 1 | . . . 1 . Fabricator Hacks . | . . . . . Repair Station Hacks . | . . . . . Recycling Unit Hacks . | . . . . . Scanalyzer . | . . . . . Garrison Access Hacks . | . . . . . Unauthorized Hacks . | . . . . . Terminals . | . . . . . Fabricators . | . . . . . Repair Stations . | . . . . . Recycling Units . | . . . . . Scanalyzers . | . . . . . Garrison Access . | . . . . . Data Cores Recovered . | . . . . . Used . | . . . . . Hacking Detections . | . . . . . Full Trace Events . | . . . . . Feedback Events . | . . . . . Feedback Blocked . | . . . . . Robot Schematics Acquired . | . . . . . Robots Built . | . . . . . Authchips . | . . . . . Time . | . . . . . Total Robot Build Rating . | . . . . . Part Schematics Acquired . | . . . . . Parts Built . | . . . . . Authchips . | . . . . . Time . | . . . . . Total Part Build Rating . | . . . . . Part Studies Acquired . | . . . . . Parts Repaired . | . . . . . Time . | . . . . . Parts Recycled . | . . . . . Recycled Matter . | . . . . . Retrieved Matter . | . . . . . Retrieved Components . | . . . . . Parts Scanalyzed . | . . . . . Part Schematics Acquired . | . . . . . Parts Damaged . | . . . . . Bothacking | -11 -10 -10 -10 -9 ------------ Run | Yrd Mat Min Exi Min Used RIF Installer . | . . . . . Robots Hacked . | . . . . . Non-combat . | . . . . . Combat . | . . . . . Robot Hacks Applied . | . . . . . Relay Couplers Released . | . . . . . Fabnet Peak Effective % . | . . . . . Robots Rewired . | . . . . . Allies Hacked . | . . . . . Hacks Repelled . | . . . . . Allies | -11 -10 -10 -10 -9 -------- Run | Yrd Mat Min Exi Min Total Allies 1 | . . 1 . . Largest Group 1 | . . 1 1 1 Highest-Rated Group 37 | . . 37 37 37 Highest-Rated Ally 37 | . . 37 37 37 Total Orders . | . . . . . Ally Attacks 2 | . . . . 2 Total Damage 61 | . . . . 61 Kills 1 | . . . . 1 Allies Corrupted . | . . . . . Allies Melted . | . . . . . Intel | -11 -10 -10 -10 -9 ------- Run | Yrd Mat Min Exi Min Active Infowar (turns) 53 | 53 . . . . Seismic 53 | 53 . . . . Robot Analysis Total . | . . . . . Derelict Logs Recovered 1 | . . 1 . . Drone Launches . | . . . . . Drone Recoveries . | . . . . . Exploration | -11 -10 -10 -10 -9 ------------- Run | Yrd Mat Min Exi Min Turns Passed 2925 | 210 422 957 597 739 Spaces Moved 1708 | 98 233 732 344 301 Core 7 | 7 . . . . Treads . | . . . . . Legs 1701 | 91 233 732 344 301 Wheels . | . . . . . Hover . | . . . . . Flight . | . . . . . Fastest Speed 50 | 50 120 120 120 190 Average Speed 142 | 115 120 120 170 190 Slowest Speed 190 | 120 120 190 190 190 Overloaded Moves . | . . . . . Propulsion Burnouts . | . . . . . Robots Hopped . | . . . . . Potential Cave-ins . | . . . . . Cave-ins Triggered . | . . . . . Exploration Rate (%) 54 | 4 48 98 68 55 Regions Visited 4 Branch Regions 3 Pre-discovered Areas . | . . . . . Known Exits Taken . | . . . . . Unknown Exits Taken 4 | 1 1 1 1 . Scrap Searched 2 | . . 1 . 1 Spaces Dug . | . . . . . Terrain Destroyed . | . . . . . Melee . | . . . . . Projectile . | . . . . . AOE . | . . . . . Terrain Rammed . | . . . . . Walls Destroyed . | . . . . . Machines Disabled . | . . . . . Actions | -11 -10 -10 -10 -9 --------- Run | Yrd Mat Min Exi Min Total 1988 | 150 299 797 355 387 Wait 53 | . . 22 1 30 Move 1704 | 97 232 731 343 301 Hop . | . . . . . Pick Up 27 | 5 4 9 8 1 Fast Attach 13 | 7 2 3 . 1 Attach 3 | . 1 1 . 1 Detach 2 | 1 . 1 . . Swap 11 | . 8 1 1 1 Drop 26 | . 11 12 2 1 Fire 139 | 39 41 8 . 51 Melee . | . . . . . Ram . | . . . . . Kick 10 | 1 . 9 . . Crush . | . . . . . Escape Stasis . | . . . . . Rewire . | . . . . . Trap . | . . . . . Miscellaneous . | . . . . . Route ------- -11/Scrapyard -10/Materials (discovered 2 exits: [*Mat] / [*Min]) -10/Mines (discovered 3 exits: [*Mat x2] / *Exi) -10/Exiles -9/Mines History --------- Turn | Location | Event 4 | -11/Scrapyard | Discovered new exit (range 15) 211 | -11/Scrapyard | Entered Materials 314 | -10/Materials | Build established: Mutant 481 | -10/Materials | Discovered new exit (range 15) 551 | -10/Materials | Discovered new exit (range 10) 633 | -10/Materials | Entered Mines 679 | -10/Mines | Learned Materials stockpile data 727 | -10/Mines | Discovered new exit (range 6) 816 | -10/Mines | Received a Rocket Launcher from a helpful Derelict 869 | -10/Mines | Joined a pair of Derelicts in attacking an 0b10 outpost 892 | -10/Mines | Found Botcube 956 | -10/Mines | Botcube activated 976 | -10/Mines | Botcube completed mutation into treaded form, armed with 2 guns. 1199 | -10/Mines | Discovered new exit (range 12) 1307 | -10/Mines | Build established: Scavenger-Mutant 1345 | -10/Mines | Deemed a non-threat by the Exiles lab entrance 1347 | -10/Mines | Discovered new exit (range 5) 1590 | -10/Mines | Entered Exiles 1590 | -10/Exiles | Accompanied by 1 ally 1620 | -10/Exiles | Met 8R-AWN 1640 | -10/Exiles | Met EX-HEX 1684 | -10/Exiles | Met EX-DEC 1774 | -10/Exiles | Met EX-BIN 1861 | -10/Exiles | Aligned with FarCom system 1863 | -10/Exiles | Given EX-Vault access code 1909 | -10/Exiles | Opened EX-Vault 1920 | -10/Exiles | Found Potential Leg 1923 | -10/Exiles | Found Potential Leg 1937 | -10/Exiles | Found Latent Energy Streamer 1993 | -10/Exiles | Found Deploy-a-Sentry 1996 | -10/Exiles | Found Deploy-a-Sentry 1999 | -10/Exiles | Found Deploy-a-Sentry 2042 | -10/Exiles | Warned to stay clear of 0b10 Research branches 2160 | -10/Exiles | Discovered new exit (range 14) 2187 | -10/Exiles | Stole three prototypes: Potential Leg, Latent Energy Streamer, Deploy-a-Sentry 2187 | -10/Exiles | Entered Mines 2187 | -9/Mines | Accompanied by 1 ally 2201 | -9/Mines | Found Botcube 2279 | -9/Mines | Excavation squad dispatched 2279 | -9/Mines | A large section of the Mines collapsed 2299 | -9/Mines | Core integrity fell below 50% 2389 | -9/Mines | Found a hidden stash of uninstalled traps 2529 | -9/Mines | Excavation squad dispatched 2869 | -9/Mines | Core integrity fell below 20% 2927 | -9/Mines | Core destroyed Last Messages --------------- 02880_ Beamcaster temporarily disabled. 02880_ Lgt. Angular Momentum Engine destroyed. 02885_ K-01 Serf collects debris. 02890_ Hvy. Assault Rifle destroyed. 02890_ G-34 Mercenary suffers critical hit (Burn). 02892_ K-01 Serf collects debris. 02900_ Overheating: Lrg. Storage Unit damaged (-181). 02900_ Aluminum Leg destroyed. 02901_ Carbon-fiber Leg broken. 02901_ Overheating: Short circuit. 02901_ K-01 Serf collects debris. 02904_ G-34 Mercenary destroyed. 02908_ K-01 Serf destroyed. 02910_ Overheating: Energy bleed (-2). 02912_ Power failure, Ion Engine shutdown. 02924_ Overheating: Matter decay (-45). 02927_ Power failure, Ion Engine shutdown. 02927_ Overheating: Core damaged (-25). Map ----- +----------------------------------------------------+ | ?????????????????## ############?????????????? | | ???##########????# ## #?????????????? | | ??## ## ###### ^^## #?????????????? | | ### # ^#?????????????? | | # ^#?????????????? | | ####### ### # #?????????????? | | """ ## #?????# #?## ##????????????? | | """ #### ###### #??# ^ #????????????? | | """ ##??# #??## ## #????????????? | | #??# ##### #???## ### #????????????? | | # #??# #???# #????#####?# #????????????? | | ## #??# ##???# #??????????# ###### #?????? | | ?# #??## ##????# #??????????# #?????? | | # #???#####?????# #??????????# ########?????? | | # #?????????????# #??????????# #????????????? | | # #?????????????# #??????????# #????????????? | | ## ##?????????????# #?????????## #????????????? | | ?####??????????????# #????????## ##???????????? | | ??????????????????## ##???????# #???????????? | | ?????????????????## ######### #???????????? | | ???????????????### ! = #???????????? | | ??????????????## = #########???? | | ?????????????## [ #= #### #???? | | ????????????## %% ##% #??## ######## #???? | | ???????###### %!%= ###= #???#####??????# #???? | | ???????# %! " = ##?#@=#??????????????# #???? | | ???????#!! ####??#=%#??????????????# #???? | | ???????# ## ##????# % #?????????????# #???? | | ???????# ### #?????# #????????????# #???? | | ???????# #?# #?????# #????????????# #???? | | ???????# #?# #?????# !*#????????????# ##??? | | ???????# #?# #?????# *!% ####???????## ##?? | | ???????# #?## #????# =%%; ##??????#&& #?? | | ???????# #??## #????## %; #??????# & ##? | | ??????## #???## ##?????#### [ ###?????##&& #? | | ??????# ##???# ##??????????# ####### #? | | ??????# ##### #????####???#; ;; ###### ##? | | ??????# #???## ##?## ; # #" #?? | | ?????## ######??## ### ####### ##?? | | ???### ##??????## #"## # #?????# ##??? | | ??## ##??????## ### ##?????## #???? | | ??# ##??????## ##???????# #???? | | ?# ###??????## ##????????# #??? | | # ##???????## ##?????????# #??? | | # #???????## ### ##??????????## ##??? | | ## ##??????## ##?#####????????????####???? | | ?###????????# #??????????????????????????? | | ?????????#### #??????????????????????????? | | ?????????# #??????????????????????????? | | ########## ##??????????????????????????? | +----------------------------------------------------+ Best States ------------- Heat Dissipation 25 Energy Generation 18 Energy Capacity 250 Matter Stores 300 Matter Capacity 300 Sight Range 16 Terrain Scan Density 10 Armor Coverage 150 Evasion (%) 55 Item Schematics ----------------- None Robot Schematics ------------------ None Fabricated ------------ Nothing Repaired ---------- Nothing Studied --------- None Alien Tech Used ----------------- None Achievements -------------- None Challenges ------------ None Game ------ Seed SpectralFortressSpiker Manual? 0 Play Time 00:13:20 Cumulative 242.3 hours Start 2026.01.03 @ 20:26:31 End 2026.01.03 @ 21:05:08 Sessions 3 Manual Loads 0 Difficulty Rogue Special Mode None Game No. 232 Rogue 232 Adventurer 0 Explorer 0 Win Type - Total 11 Types 8/0/2/0/0/0/0/0/0/1 Lore% 87 Gallery% 77 Achievement% 61 Wizard Run 0 Options --------- Layout 1 ASCII 0 Keyboard 1 Movement Arrows Keybinds 0 Fullscreen 1 Font 24/Smallcaps Map View 50x40 Zoom Use 0% Tactical HUD 1 Map Filters NONE Filters NONE Steam 1 RUN: 9c51ba1e-4a97-4223-b604-b288f867ec9a